bitfinex-derivatives/quotes_ETHF0:USTF0_20241017
["timestamp","ask_amount","ask_price","bid_price","bid_amount"]
[1729193325036,12.8644,2594.7,2594.5,1.51426392]
[1729193325233,12.8644,2594.7,2593.9,6.22844278]
[1729193325234,3.8544,2594.6,2594.4,1.51426392]
[1729193325434,6.2178,2594.5,2594.2,1.51426392]
[1729193325741,6.2178,2594.5,2594.1,1.51426392]
[1729193325742,0.38553,2594.2,2594.1,1.51426392]
[1729193326539,0.38554,2594.1,2594.0,0.38555]
[1729193326737,0.38554,2594.1,2594.0,3.33304347]
[1729193327141,0.38557,2593.9,2593.7,2.90280231]
[1729193327336,0.38557,2593.9,2593.8,3.3333606]
[1729193328242,6.2178,2594.1,2593.8,3.3333606]
[1729193328443,6.2178,2594.1,2594.0,1.51454666]
[1729193328739,6.60334,2594.1,2594.0,1.51454666]
[1729193329038,6.60334,2594.1,2594.0,2.98662195]
[1729193329239,16.073,2594.1,2593.9,1.51454666]
[1729193329541,16.073,2594.1,2593.7,1.51454666]
[1729193329542,0.38559,2593.8,2593.7,1.51454666]
[1729193329738,0.38559,2593.8,2593.7,1.4728668]
[1729193330044,0.38559,2593.8,2593.7,2.98827242]
[1729193330540,3.59339,2593.8,2593.7,2.98827242]
[1729193330740,3.2078,2593.8,2593.7,1.47267325]
[1729193330928,6.2178,2593.8,2593.6,1.51540562]
[1729193331131,6.2178,2593.8,2593.5,2.33023562]
[1729193331333,0.38562,2593.6,2593.5,1.94460562]
[1729193331646,0.38562,2593.6,2593.5,0.81483]
[1729193332736,0.38562,2593.6,2593.5,0.4292]
[1729193332942,0.38562,2593.6,2593.5,0.81483]
[1729193333339,0.38561,2593.7,2593.6,0.38561]
[1729193333644,0.38562,2593.6,2593.5,2.33022562]
[1729193333834,0.38562,2593.6,2593.5,3.80139181]
[1729193334237,0.38562,2593.6,2593.5,2.28598619]
[1729193334843,0.38562,2593.6,2593.5,2.28573181]
[1729193335237,0.38562,2593.6,2593.5,0.81482]
[1729193336447,3.2078,2593.8,2593.5,0.4292]
[1729193336641,0.38562,2593.7,2593.6,0.38561]
[1729193337445,3.5934,2593.8,2593.7,0.3856]
[1729193339444,0.38562,2593.7,2593.6,0.38561]
[1729193340450,0.38562,2593.6,2593.5,0.81483]
[1729193340648,0.38562,2593.6,2593.5,2.28482538]
[1729193341054,3.2078,2593.8,2593.5,1.89919538]
[1729193341252,0.38562,2593.6,2593.5,2.33022562]
[1729193341449,0.38562,2593.6,2593.5,3.7998733]
[1729193342750,0.38562,2593.6,2593.5,2.28446768]
[1729193343450,0.38562,2593.6,2593.5,2.2840213]
[1729193345247,3.2078,2593.7,2593.5,1.8984013]
[1729193345549,3.59341,2593.7,2593.6,0.38562]
[1729193347048,3.5934,2593.7,2593.6,0.38562]
[1729193347246,3.2078,2594.0,2593.6,3.8552]
[1729193347551,0.38559,2593.8,2593.7,2.27245966]
[1729193347741,0.38559,2593.8,2593.7,0.80389]
[1729193348455,0.38559,2593.8,2593.7,2.2729719]
[1729193348948,0.38559,2593.8,2593.7,0.80389]
[1729193350746,12.8652,2593.8,2593.6,1.51540562]
[1729193350955,0.38565,2593.4,2593.3,0.38565]
[1729193351148,0.38565,2593.4,2593.3,1.85551479]
[1729193351356,3.59345,2593.4,2593.3,0.38565]
[1729193351553,0.78445,2593.4,2593.3,1.85555433]
[1729193351749,0.78445,2593.4,2593.2,1.90106562]
[1729193351750,0.38566,2593.3,2593.2,1.90106562]
[1729193351959,0.38566,2593.3,2593.2,3.37093275]
[1729193352254,0.38566,2593.3,2593.2,2.98527275]
[1729193352448,0.38571,2593.0,2592.9,1.90111562]
[1729193352652,0.38571,2593.0,2592.9,3.37103756]
[1729193352849,0.38571,2593.0,2592.9,0.38571]
[1729193353753,3.2078,2593.1,2592.8,1.51540562]
[1729193354158,0.38571,2593.0,2592.9,0.38571]
[1729193355753,3.5935,2593.1,2593.0,0.38571]
[1729193359456,0.3857,2593.1,2593.0,0.38571]
[1729193359655,3.5935,2593.1,2593.0,0.38571]
[1729193360464,0.38572,2593.0,2592.9,0.38571]
[1729193360659,0.78482,2593.0,2592.9,0.38571]
[1729193361151,0.3991,2593.0,2592.9,0.38571]
[1729193361356,0.78481,2593.0,2592.9,0.38571]
[1729193362459,0.3991,2593.0,2592.9,0.38571]
[1729193362860,4.00369,2593.2,2593.1,0.38569]
[1729193363058,0.3857,2593.1,2593.0,0.38569]
[1729193364061,3.5935,2593.1,2593.0,0.38569]
[1729193365266,3.2078,2593.1,2592.9,0.8238]
[1729193365457,0.38571,2593.0,2592.9,1.20951]
[1729193367454,3.2078,2593.1,2592.9,0.8238]
[1729193367660,3.2078,2593.1,2593.0,0.38571]
[1729193367860,3.2078,2593.1,2593.0,0.77501]
[1729193368169,4.5978,2593.1,2593.0,2.24437834]
[1729193368463,4.5978,2593.1,2593.0,0.77501]
[1729193369972,4.5978,2593.1,2593.0,2.24395747]
[1729193370270,4.5978,2593.1,2593.0,3.75936309]
[1729193370461,4.5978,2593.1,2593.0,2.24395747]
[1729193370662,4.5978,2593.1,2593.0,3.75936309]
[1729193371470,4.98349,2593.1,2593.0,3.76062376]
[1729193371670,1.77569,2593.1,2593.0,3.76062376]
[1729193372072,1.39,2593.1,2593.0,3.76062376]
[1729193372568,1.39,2593.1,2593.0,2.24521814]
[1729193373166,1.39,2593.1,2593.0,3.76062376]
[1729193374465,1.39,2593.1,2593.0,2.24521814]
[1729193374864,1.39,2593.1,2593.0,3.76062376]
[1729193375371,4.5978,2593.1,2593.0,3.76062376]
[1729193375975,4.98349,2593.1,2593.0,3.76062376]
[1729193376373,4.98349,2593.1,2593.0,3.37190106]
[1729193377376,4.98349,2593.1,2593.0,1.85649544]
[1729193378278,4.98349,2593.1,2593.0,0.38571]
[1729193378480,4.98349,2593.1,2593.0,1.85677377]
[1729193379477,4.98349,2593.1,2593.0,0.38571]
[1729193379780,3.2078,2593.1,2593.0,1.77571]
[1729193379972,1.77567,2593.3,2593.0,2.18571]
[1729193380173,1.77567,2593.3,2593.2,1.89915366]
[1729193380174,0.38567,2593.3,2593.2,1.89915366]
[1729193380373,1.77567,2593.3,2593.2,3.37003146]
[1729193381182,1.77567,2593.3,2593.2,3.3701668]
[1729193383483,4.98347,2593.3,2593.2,1.85669314]
[1729193383691,4.98347,2593.3,2593.2,3.3701668]
[1729193384486,4.98347,2593.3,2593.2,1.85669314]
[1729193385688,4.98347,2593.3,2593.2,1.85727415]
[1729193387484,4.98347,2593.3,2593.2,3.37074781]
[1729193388279,4.98347,2593.3,2593.2,1.85727415]
[1729193388479,4.5978,2593.3,2593.2,3.37074781]
[1729193389294,4.98347,2593.3,2593.2,3.37074781]
[1729193390187,3.2078,2593.3,2593.2,3.37074781]
[1729193390487,4.98346,2593.3,2593.2,1.85534095]
[1729193391493,4.98346,2593.3,2593.2,3.87330583]
[1729193391789,1.77566,2593.3,2593.2,3.87330583]
[1729193391990,4.98346,2593.3,2593.2,3.87330583]
[1729193392995,1.77566,2593.3,2593.2,3.87330583]
[1729193393696,1.77566,2593.3,2593.2,6.81414984]
[1729193394382,1.77566,2593.3,2593.2,6.42846984]
[1729193394782,1.77566,2593.3,2593.2,3.48762583]
[1729193395187,1.77566,2593.3,2593.2,3.48901499]
[1729193395384,1.77566,2593.3,2593.2,1.47105011]
[1729193396590,1.77566,2593.3,2593.2,6.4336463]
[1729193397582,1.77566,2593.3,2593.2,4.41568142]
[1729193397793,1.77566,2593.3,2593.2,6.43924426]
[1729193399293,4.98346,2593.3,2593.2,6.43924426]
[1729193399592,4.98346,2593.3,2593.2,7.32381752]
[1729193400091,1.77566,2593.3,2593.2,7.32381752]
[1729193401187,1.77566,2593.3,2593.2,9.88332177]
[1729193401391,1.77566,2593.3,2593.2,7.32437046]
[1729193403000,1.77566,2593.3,2593.2,4.38021422]
[1729193403193,1.77566,2593.3,2593.2,7.32392497]
[1729193403787,0.38566,2593.4,2593.3,0.38564]
[1729193404099,1.77566,2593.4,2593.3,8.14316749]
[1729193405889,1.77566,2593.4,2593.3,5.61492887]
[1729193406401,1.77566,2593.4,2593.3,8.14316749]
[1729193406594,1.77566,2593.4,2593.3,4.41578887]
[1729193406796,11.63166,2593.4,2593.3,2.38833467]
[1729193406997,0.38569,2593.1,2593.0,1.51800738]
[1729193407300,0.38571,2593.0,2592.9,2.40947363]
[1729193407499,2.17511,2593.0,2592.9,5.35021175]
[1729193407994,0.38571,2593.1,2593.0,0.38569]
[1729193408195,1.77571,2593.1,2593.0,2.40957302]
[1729193408388,1.77571,2593.1,2593.0,5.35011574]
[1729193409391,1.77571,2593.1,2593.0,2.02388302]
[1729193409595,0.38571,2593.0,2592.9,2.40960302]
[1729193409902,0.38571,2593.0,2592.9,5.3790284]
[1729193409903,1.77571,2593.0,2592.9,5.3790284]
[1729193410296,1.77571,2593.0,2592.9,5.37906309]
[1729193411193,1.00440264,2593.0,2592.9,5.37906309]
[1729193411393,1.00440264,2593.0,2592.9,2.40960302]
[1729193411598,1.00440264,2593.0,2592.9,5.37908708]
[1729193411901,0.38571,2593.0,2592.9,4.74520406]
[1729193412294,0.38571,2593.0,2592.9,4.74514385]
[1729193412800,0.38571,2593.0,2592.9,7.27338247]
[1729193413391,1.77571,2593.0,2592.9,3.35514385]
[1729193413804,1.77571,2593.0,2592.9,5.37939332]
[1729193414002,1.77571,2593.0,2592.9,3.35514385]
[1729193414196,0.3994,2593.2,2592.9,3.35514385]
[1729193414504,0.78508,2593.2,2593.1,2.53034223]
[1729193414707,0.78508,2593.2,2593.1,5.49976608]
[1729193415005,0.78508,2593.2,2593.1,5.92956608]
[1729193415209,10.64108,2593.2,2593.1,2.02425264]
[1729193415510,10.64108,2593.2,2593.1,1.51818833]
[1729193415705,0.38569,2593.1,2593.0,1.51818833]
[1729193415916,4.63349,2593.1,2593.0,1.51818833]
[1729193416105,2.16749,2593.1,2593.0,1.51818833]
[1729193416295,6.82329,2593.1,2593.0,1.51800189]
[1729193416500,10.68009,2593.1,2593.0,1.51800189]
[1729193416802,10.68009,2593.1,2593.0,1.90371189]
[1729193416997,6.82329,2593.1,2593.0,1.90371189]
[1729193417200,6.82329,2593.1,2593.0,2.31151189]
[1729193417403,4.98349,2593.1,2593.0,2.31151189]
[1729193417604,4.98349,2593.1,2593.0,6.20747132]
[1729193417808,4.98349,2593.1,2593.0,6.63387132]
[1729193418006,1.77569,2593.1,2593.0,6.63387132]
[1729193418195,1.77569,2593.1,2593.0,4.60961868]
[1729193420500,1.77569,2593.1,2593.0,6.63322583]
[1729193421308,1.77569,2593.1,2593.0,4.60961868]
[1729193421609,1.77569,2593.1,2593.0,6.6331971]
[1729193422016,1.77569,2593.1,2593.0,1.64901]
[1729193423713,1.77569,2593.1,2592.8,2.35435]
[1729193423714,0.38572,2592.9,2592.8,1.903422]
[1729193423903,0.38574,2592.8,2592.7,2.291632]
[1729193424104,2.19194,2592.8,2592.7,0.77394]
[1729193425214,2.19194,2592.8,2592.7,0.3882]
[1729193425508,2.19194,2592.8,2592.7,0.77395]
[1729193425699,2.19194,2592.8,2592.7,0.3882]
[1729193425899,2.19194,2592.8,2592.7,0.77395]
[1729193426502,0.38574,2592.8,2592.7,2.16395]
[1729193426701,0.38573,2593.0,2592.9,0.38572]
[1729193427005,0.38573,2593.0,2592.9,1.77572]
[1729193427900,0.38574,2592.9,2592.8,1.77572]
[1729193428097,1.77574,2592.9,2592.8,3.25529294]
[1729193428811,1.77574,2592.9,2592.8,1.77572]
[1729193428998,1.77574,2592.9,2592.8,6.21440825]
[1729193429410,0.38574,2592.9,2592.8,6.21440825]
[1729193430312,3.59354,2592.9,2592.8,8.23702087]
[1729193430509,3.59354,2592.9,2592.8,6.21440825]
[1729193430898,3.59354,2592.9,2592.8,6.21411833]
[1729193431401,0.38574,2592.9,2592.8,6.21411833]
[1729193431898,0.38574,2592.9,2592.8,8.74446056]
[1729193432101,0.38574,2592.9,2592.8,6.21411833]
[1729193435815,1.77574,2592.9,2592.8,4.82411833]
[1729193437008,1.77574,2592.9,2592.8,1.39692058]
[1729193437315,1.77574,2592.9,2592.8,0.38572]
[1729193438410,0.38574,2592.9,2592.8,1.77572]
[1729193438612,3.2078,2593.1,2592.8,2.40120058]
[1729193438820,3.2078,2593.1,2593.0,2.78691058]
[1729193439110,3.2078,2593.1,2593.0,4.26625062]
[1729193439305,3.59349,2593.1,2593.0,11.58195092]
[1729193439506,3.59349,2593.1,2593.0,5.58195092]
[1729193440111,3.59349,2593.1,2593.0,5.58197423]
[1729193441729,4.5978,2593.3,2593.0,5.19626423]
[1729193442019,0.38569,2593.2,2593.1,1.81244781]
[1729193442318,0.38569,2593.2,2593.1,3.20244781]
[1729193443615,0.38569,2593.1,2593.0,0.8101]
[1729193443820,2.16359,2593.1,2593.0,0.4122]
[1729193444020,2.16359,2593.1,2593.0,6.87277018]
[1729193444324,12.02039,2593.1,2593.0,2.99626441]
[1729193444520,12.98258737,2593.1,2593.0,2.99626441]
[1729193444815,12.98258737,2593.1,2592.9,1.01134208]
[1729193444816,0.38571,2593.0,2592.9,1.01134208]
[1729193445016,5.38311,2593.0,2592.9,1.01134208]
[1729193445318,15.23991,2593.0,2592.9,1.01134208]
[1729193446819,3.99311,2593.0,2592.9,1.39]
[1729193447121,3.99311,2593.0,2592.9,5.18349882]
[1729193447321,3.99311,2593.0,2592.9,3.66662408]
[1729193447521,5.38311,2593.0,2592.9,3.66662408]
[1729193448318,3.59351,2593.0,2592.9,5.68902525]
[1729193448522,3.40018128,2593.0,2592.9,8.64786693]
[1729193449124,4.79018128,2593.0,2592.9,5.68902525]
[1729193449321,1.77571,2593.0,2592.9,8.64093724]
[1729193449627,1.77571,2593.0,2592.9,7.25093724]
[1729193450325,1.77571,2593.0,2592.9,6.61853607]
[1729193451124,1.77571,2593.0,2592.9,8.64128965]
[1729193451317,1.77571,2593.0,2592.9,6.61853607]
[1729193453424,1.77571,2593.0,2592.9,5.22853607]
[1729193454125,1.77571,2593.0,2592.9,5.22999161]
[1729193455820,1.77571,2593.0,2592.9,7.25339152]
[1729193456015,1.77571,2593.0,2592.9,5.22999161]
[1729193458523,1.77571,2593.0,2592.9,7.76033384]
[1729193458719,1.77571,2593.0,2592.9,4.80431697]
[1729193458917,1.77571,2593.0,2592.9,5.22728422]
[1729193459120,1.77571,2593.0,2592.9,1.80839689]
[1729193459326,0.38572,2592.9,2592.8,3.17900689]
[1729193459632,0.38572,2592.9,2592.8,5.16163002]
[1729193459633,1.77572,2592.9,2592.8,5.16163002]
[1729193461430,1.77572,2592.9,2592.8,3.64501468]
[1729193461629,1.77572,2592.9,2592.8,1.86928468]
[1729193461834,1.77572,2592.9,2592.7,1.01179102]
[1729193461835,1.39,2592.9,2592.7,1.01179102]
[1729193462131,1.39,2592.9,2592.5,1.39757102]
[1729193462132,0.38577,2592.6,2592.5,1.39757102]
[1729193462426,9.82566,2592.8,2592.4,3.21729102]
[1729193462427,3.6145,2592.8,2592.4,3.21729102]
[1729193462629,0.38576,2592.7,2592.6,2.78754102]
[1729193462830,0.38576,2592.7,2592.6,3.19744102]
[1729193464021,0.38575,2592.8,2592.7,0.38574]
[1729193464236,0.38575,2592.8,2592.7,1.77574]
[1729193465533,0.38572,2592.9,2592.8,0.38574]
[1729193465836,1.435,2593.1,2592.8,4.77742646]
[1729193466035,0.38572,2592.9,2592.8,2.70863534]
[1729193466228,0.38571,2593.1,2593.0,0.38569]
[1729193466427,0.38571,2593.1,2593.0,1.39715374]
[1729193466722,0.8024,2593.2,2592.9,1.39717374]
[1729193466928,0.38571,2593.0,2592.9,1.39717374]
[1729193467128,0.38571,2593.0,2592.9,7.34817902]
[1729193467330,0.38571,2593.0,2592.9,8.73817902]
[1729193471343,1.77571,2593.0,2592.9,6.9623886]
[1729193471538,7.77571,2593.0,2592.9,1.47734879]
[1729193471738,7.77571,2593.0,2592.9,2.99474239]
[1729193472235,1.77571,2593.0,2592.9,2.99474239]
[1729193473248,11.63251,2593.0,2592.9,2.99474239]
[1729193473640,5.63251,2593.0,2592.9,2.99474239]
[1729193474245,11.63251,2593.0,2592.9,2.99474239]
[1729193475144,12.04931,2593.0,2592.9,2.99474239]
[1729193475747,12.04931,2593.0,2592.9,2.99483464]
[1729193476643,12.04931,2593.0,2592.9,2.99478253]
[1729193476842,15.25711,2593.0,2592.9,2.99478253]
[1729193477043,9.25711,2593.0,2592.9,2.99478253]
[1729193478445,9.25711,2593.0,2592.9,2.48888679]
[1729193478636,9.25711,2593.0,2592.9,1.47738893]
[1729193478947,9.25711,2593.0,2592.9,2.99478253]
[1729193479742,9.25711,2593.0,2592.9,1.47738893]
[1729193480344,9.25711,2593.0,2592.9,2.48885342]
[1729193480751,9.25711,2593.0,2592.9,1.47738893]
[1729193481448,9.25711,2593.0,2592.9,2.48877674]
[1729193481853,9.25711,2593.0,2592.9,2.99478253]
[1729193482151,6.04931,2593.0,2592.9,2.99478253]
[1729193482354,0.38572,2592.9,2592.8,0.38573]
[1729193482539,0.38572,2592.9,2592.7,1.01132562]
[1729193482540,0.38575,2592.8,2592.7,1.39706562]
[1729193482743,0.81235,2592.8,2592.7,0.38574]
[1729193483343,0.38575,2592.8,2592.7,1.77574]
[1729193483549,0.38575,2592.8,2592.7,2.78706562]
[1729193486450,1.39,2592.9,2592.7,2.78706562]
[1729193486451,1.39,2592.9,2592.7,2.40132562]
[1729193486651,1.77573,2592.9,2592.8,0.38574]
[1729193486846,0.38572,2593.0,2592.9,0.38571]
[1729193487050,0.38572,2593.0,2592.9,3.20783562]
[1729193487356,0.38565,2593.4,2593.3,0.38565]
[1729193487945,3.2078,2593.6,2593.3,3.23484504]
[1729193488142,1.39,2593.8,2593.7,0.38559]
[1729193488353,0.38559,2593.8,2593.7,1.77559]
[1729193489053,1.77559,2593.8,2593.7,1.77559]
[1729193489440,1.77559,2593.8,2593.7,4.76918284]
[1729193490243,1.39,2593.8,2593.7,4.26265411]
[1729193490446,1.77559,2593.8,2593.7,4.26172357]
[1729193490648,1.39,2593.8,2593.7,3.65793474]
[1729193490849,1.77559,2593.8,2593.7,3.65793474]
[1729193491449,1.77559,2593.8,2593.7,4.66812652]
[1729193491655,1.77559,2593.8,2593.7,3.19248178]
[1729193492150,1.77559,2593.8,2593.7,2.80689178]
[1729193492357,1.77559,2593.8,2593.7,1.41689178]
[1729193492753,1.77559,2593.8,2593.7,1.80249178]
[1729193493153,1.77559,2593.8,2593.7,2.19919178]
[1729193493558,1.77559,2593.8,2593.7,1.189]
[1729193495055,1.39,2593.8,2593.7,2.579]
[1729193495254,1.39,2593.8,2593.7,3.58919178]
[1729193495457,1.77559,2593.8,2593.7,3.58919178]
[1729193496567,1.77559,2593.8,2593.7,2.579]
[1729193496761,1.39,2593.8,2593.4,0.3939]
[1729193497061,1.39,2593.8,2593.4,1.2165]
[1729193497062,1.77563,2593.5,2593.4,1.2165]
[1729193499969,0.38566,2593.3,2593.2,0.38567]
[1729193500164,1.77566,2593.3,2593.2,0.38567]
[1729193501560,1.77566,2593.3,2593.1,3.2078]
[1729193501561,1.39,2593.3,2593.1,3.2078]
[1729193501767,0.38569,2593.1,2593.0,1.2563]
[1729193501965,1.77569,2593.1,2593.0,1.64201]
[1729193502164,1.77569,2593.1,2593.0,3.03201]
[1729193502371,1.77568,2593.2,2593.1,0.38569]
[1729193502563,1.77568,2593.2,2593.1,1.77569]
[1729193502868,1.39,2593.3,2593.1,1.39]
[1729193503070,1.39,2593.3,2593.2,1.77566]
[1729193503266,1.77566,2593.3,2593.2,1.77566]
[1729193504475,1.39,2593.3,2593.2,1.77566]
[1729193504679,1.39,2593.3,2593.2,2.78585178]
[1729193505166,1.77566,2593.3,2593.2,2.78585178]
[1729193505371,1.77566,2593.3,2593.2,0.38566]
[1729193506075,1.39,2593.3,2593.1,2.40019178]
[1729193506276,0.38568,2593.2,2593.1,2.78587178]
[1729193508086,0.38565,2593.4,2593.3,0.38565]
[1729193508277,0.38565,2593.4,2593.3,1.77565]
[1729193508778,4.23642313,2593.7,2593.3,2.39898164]
[1729193508982,4.5978,2593.7,2593.6,1.39]
[1729193509279,0.38559,2593.9,2593.8,0.38558]
[1729193509469,0.38559,2593.9,2593.8,1.77558]
[1729193509668,4.98337,2594.0,2593.9,0.38557]
[1729193509874,4.98337,2594.0,2593.9,0.81207]
[1729193510073,4.98337,2594.0,2593.9,0.8167]
[1729193510674,1.77557,2594.0,2593.9,0.8167]
[1729193510980,4.98337,2594.0,2593.9,0.8167]
[1729193511979,3.2078,2594.0,2593.9,0.8167]
[1729193512169,0.4107,2594.4,2593.9,13.02583]
[1729193512371,1.39,2594.4,2594.3,1.39]
[1729193512570,1.39,2594.4,2594.2,1.77552]
[1729193512571,0.38551,2594.3,2594.2,1.77552]
[1729193512774,1.39,2594.4,2594.3,0.38551]
[1729193512775,1.7755,2594.4,2594.3,0.38551]
[1729193513475,1.39,2594.4,2594.2,1.39]
[1729193513783,0.38551,2594.3,2594.2,1.77552]
[1729193513979,0.38551,2594.3,2594.2,0.38552]
[1729193514170,3.2078,2594.5,2593.9,4.79063]
[1729193514171,0.38554,2594.2,2594.1,0.38554]
[1729193515877,0.38553,2594.3,2594.2,0.38551]
[1729193516474,0.38551,2594.4,2594.3,0.3855]
[1729193516776,6.22265,2594.7,2594.1,3.01]
[1729193516777,0.819,2594.7,2594.1,3.01]
[1729193516976,0.38549,2594.5,2594.4,0.38548]
[1729193517184,0.38549,2594.5,2594.4,0.77398]
[1729193518679,4.79265,2594.7,2594.2,0.4009]
[1729193518880,0.38551,2594.3,2594.2,0.78641]
[1729193519083,0.38551,2594.4,2594.3,0.3855]
[1729193520171,0.38551,2594.3,2594.2,0.78642]
[1729193520377,0.38551,2594.3,2594.2,0.4009]
[1729193520693,0.38551,2594.3,2594.2,0.78643]
[1729193521684,0.38554,2594.1,2594.0,0.3885]
[1729193521887,0.38554,2594.1,2594.0,1.18045]
[1729193522685,0.79254,2594.2,2594.1,0.38554]
[1729193524081,0.38554,2594.2,2594.1,0.38554]
[1729193525287,0.38554,2594.1,2594.0,0.79195]
[1729193525494,0.80254,2594.1,2594.0,0.79195]
[1729193525892,0.38556,2594.0,2593.9,0.38557]
[1729193526099,0.38557,2593.9,2593.8,3.2078]
[1729193526391,0.38557,2593.9,2593.8,3.59339]
[1729193526392,0.78637,2593.9,2593.8,3.59339]
[1729193529317,0.417,2594.1,2593.8,3.2078]
[1729193529501,0.38554,2594.2,2594.1,0.38553]
[1729193530687,0.4211,2594.3,2594.0,0.4172]
[1729193530894,0.4211,2594.3,2594.1,0.38553]
[1729193530895,0.38554,2594.2,2594.1,0.38553]
[1729193533198,0.80663,2594.3,2594.2,0.38553]
[1729193533399,0.38553,2594.3,2594.2,0.78333]
[1729193533787,3.6373,2594.5,2594.2,0.3978]
[1729193534096,3.59329,2594.5,2594.4,0.3855]
[1729193534293,3.2078,2594.5,2594.4,0.3855]
[1729193534999,0.38548,2594.6,2594.5,0.38548]
[1729193535199,0.38548,2594.6,2594.2,1.36161]
[1729193535200,5.17508201,2594.8,2594.2,1.36161]
[1729193535504,3.01,2594.7,2594.4,0.4297]
[1729193535699,0.38548,2594.6,2594.5,0.38547]
[1729193535900,0.38548,2594.5,2594.4,0.81519]
[1729193536294,0.38548,2594.6,2594.5,0.38547]
[1729193537402,0.38548,2594.5,2594.4,0.81519]
[1729193538400,3.01,2594.7,2594.5,0.38538143]
[1729193538601,0.38547,2594.6,2594.5,0.38538143]
[1729193539107,0.38547,2594.6,2594.5,0.80608143]
[1729193539401,0.38547,2594.6,2594.5,1.19156143]
[1729193540903,0.38547,2594.6,2594.5,0.80608143]
[1729193541505,0.38547,2594.6,2594.5,1.19156143]
[1729193542206,0.38547,2594.6,2594.5,0.80608143]
[1729193542401,0.38547,2594.6,2594.5,1.19156143]
[1729193545302,0.38547,2594.6,2594.5,0.80608143]
[1729193545511,0.38547,2594.6,2594.5,1.19156143]
[1729193545702,3.39547,2594.6,2594.5,0.38538143]
[1729193545904,16.22767,2594.6,2594.5,0.13814004]
[1729193546102,16.76818337,2594.6,2594.5,1e-08]
[1729193547603,16.38271337,2594.6,2593.8,1.228]
[1729193547807,0.38562,2593.6,2593.5,0.80863]
[1729193548009,0.38562,2593.6,2593.0,8.23200984]
[1729193548010,0.3857,2593.1,2593.0,0.3857]
[1729193548312,0.38568,2593.2,2593.0,0.38569]
[1729193548615,0.38569,2593.1,2593.0,0.38569]
[1729193548912,0.38569,2593.2,2593.0,0.38569]
[1729193549302,0.38569,2593.1,2593.0,0.38569]
[1729193550411,0.38571,2593.0,2592.9,0.77421]
[1729193550707,0.38571,2593.0,2592.9,0.3885]
[1729193550898,0.38571,2593.0,2592.9,0.77422]
[1729193551099,0.7982,2593.5,2593.0,0.3857]
[1729193551100,0.38571,2593.1,2593.0,0.3857]
[1729193551302,0.7982,2593.5,2592.9,0.3885]
[1729193551510,0.38571,2593.0,2592.9,0.77422]
[1729193553109,3.97414,2593.4,2592.9,0.3885]
[1729193553613,0.38571,2593.0,2592.9,0.77421]
[1729193553908,0.38571,2593.0,2592.9,0.3885]
[1729193554112,0.38571,2593.0,2592.9,0.77422]
[1729193555604,0.3857,2593.1,2593.0,0.3857]
[1729193559215,0.38571,2593.0,2592.9,0.77421]
[1729193559715,0.3857,2593.1,2593.0,0.3857]
[1729193559919,0.38571,2593.0,2592.9,0.77421]
[1729193560215,0.3857,2593.1,2593.0,0.3857]
[1729193561712,0.38571,2593.0,2592.9,0.77422]
[1729193562312,0.38571,2593.1,2593.0,0.38569]
[1729193562508,0.38571,2593.0,2592.9,0.3885]
[1729193563619,0.38571,2593.0,2592.9,0.77422]
[1729193567940,1.77571,2593.0,2592.9,0.77422]
[1729193569234,3.2078,2593.2,2592.9,1.7785]
[1729193569437,3.2078,2593.2,2593.1,1.77569]
[1729193570430,3.2078,2593.6,2593.1,11.246]
[1729193570739,4.5978,2593.6,2593.5,1.39]
[1729193570934,4.5978,2593.6,2593.5,1.77563]
[1729193571130,4.98342,2593.6,2593.5,1.77563]
[1729193572933,3.59342,2593.6,2593.5,1.77563]
[1729193573140,3.2078,2593.6,2593.5,1.77563]
[1729193573335,1.7756,2593.8,2593.7,0.38558]
[1729193573537,4.9834,2593.8,2593.7,0.38558]
[1729193573944,3.5934,2593.8,2593.7,0.78668]
[1729193576932,3.5934,2593.8,2593.7,1.5577792]
[1729193581741,0.3856,2593.8,2593.7,1.5577792]
[1729193583048,0.421,2594.1,2593.7,5.0273992]
[1729193583345,3.2078,2594.2,2594.1,0.38554]
[1729193583346,3.59333,2594.2,2594.1,0.38554]
[1729193587044,3.01457489,2594.2,2594.1,0.38554]
[1729193591950,2.62904489,2594.2,2594.1,0.38554]
[1729193592344,0.4101,2594.5,2594.0,1.36218]
[1729193592540,0.79558,2594.5,2594.4,0.3855]
[1729193592741,0.38548,2594.5,2594.4,0.3855]
[1729193592939,0.38548,2594.6,2594.5,0.38547]
[1729193593134,0.79788,2594.7,2594.6,0.38547]
[1729193595549,0.4124,2594.7,2594.4,0.8147]
[1729193595849,0.38548,2594.6,2594.5,0.38547]
[1729193596052,1.77548,2594.6,2594.5,1.77547]
[1729193597548,0.38548,2594.5,2594.4,2.17169]
[1729193597751,0.38548,2594.5,2594.3,1.7926]
[1729193597752,1.39,2594.5,2594.3,1.7926]
[1729193597954,0.38553,2594.3,2594.2,1.77551]
[1729193598150,1.77553,2594.3,2594.2,1.77551]
[1729193598354,2.19303,2594.3,2594.2,1.77551]
[1729193599849,1.8075,2594.3,2594.0,1.39]
[1729193600056,0.38556,2594.1,2594.0,1.77553]
[1729193603055,1.77556,2594.1,2594.0,0.38553]
[1729193603257,0.38556,2594.0,2593.9,1.39]
[1729193603560,0.38556,2594.0,2593.7,5.7544992]
[1729193603561,0.38559,2593.8,2593.7,5.7544992]
[1729193604059,1.77559,2593.8,2593.7,0.7710992]
[1729193604253,2.16829,2593.8,2593.7,0.7710992]
[1729193605052,0.38559,2593.8,2593.7,2.5466992]
[1729193605849,0.3912,2593.9,2593.7,0.7710992]
[1729193606050,0.77679,2593.9,2593.8,0.38559]
[1729193606257,0.77679,2593.9,2593.8,0.79919]
[1729193607359,0.3912,2593.9,2593.8,0.79919]
[1729193607553,0.3912,2593.9,2593.8,1.19539]
[1729193608074,0.77677,2593.9,2593.8,1.19539]